Cogmind - Beta 12 @@@ ROGUE MODE // 2023.08.05 @ 19:33:18 Player: mintimati Result: Smashed by cave-in Performance ------------- Evolutions (0) 0 Regions Visited (1) 200 Robots Destroyed (3) 15 Value Destroyed (21) 21 Prototype IDs (0) 0 Alien Tech Used (0) 0 Bonus (0) 0 TOTAL SCORE: 236 Bonus ------- None Cogmind --------- Core Integrity 0/250 Matter 244/300 Energy 100/100 System Corruption 25% Temperature Cool (0) Movement Core (50) Location -10/Materials Parts ------- > --- POWER (1) -------- (None) > --- PROPULSION (2) --- (None) > --- UTILITY (2) ------ (None) > --- WEAPON (2) ------- (None) > --- INVENTORY (5) ---- Light Ion Engine Small Laser Peak State ------------ > --- POWER ------------ Ion Engine > --- PROPULSION ------- Wheel Compact Wheel > --- UTILITY ---------- Small Storage Unit Seismic Detector > --- WEAPON ----------- Small Laser Light Assault Rifle > --- INVENTORY -------- Light Ion Engine Mining Laser [Rating: 7] Favorites ----------- Power Ion Engine Engine Ion Engine Propulsion Wheel Wheel Wheel Utility Small Storage Unit Device Seismic Detector Storage Small Storage Unit Weapon Light Assault Rifle Energy Gun Small Laser Ballistic Gun Light Assault Rifle Special Weapon Mining Laser Build | -11 -10 ------- Run | Jun Mat Slots Evolved . | . . Power . | . . Propulsion . | . . Utility . | . . Weapon . | . . Parts Attached 9 | 8 1 Power 2 | 2 . Engine 2 | 2 . Core . | . . Reactor . | . . Propulsion 2 | 2 . Treads . | . . Leg . | . . Wheel 2 | 2 . Hover . | . . Flight . | . . Utility 2 | 2 . Device 1 | 1 . Storage 1 | 1 . Processor . | . . Hackware . | . . Protection . | . . Artifact . | . . Weapon 3 | 2 1 Energy Gun 1 | 1 . Energy Cannon . | . . Ballistic Gun 1 | 1 . Ballistic Cannon . | . . Launcher . | . . Special Weapon 1 | . 1 Impact Weapon . | . . Slashing Weapon . | . . Piercing Weapon . | . . Special Melee Weapon . | . . Unidentified Prototypes . | . . Parts Lost 7 | . 7 Power 1 | . 1 Propulsion 2 | . 2 Utility 2 | . 2 Weapon 2 | . 2 Highest Loss Streak 6 | . 6 To Critical Strikes . | . . Average Slot Usage (%) 35 | . 35 Engine 4 | . 4 Wheel 8 | . 8 Device 4 | . 4 Storage 10 | . 10 Ballistic Gun 4 | . 4 Special Weapon 4 | . 4 Naked Turns 121 | . 121 Heaviest Build 13 | 13 13 Greatest Support 26 | 26 26 Greatest Overweight (x) . | . . Average Overweight (x) . | . . Largest Inventory Capacity 8 | 8 8 Average Capacity 7 | 7 7 Most Carried 5 | 5 2 Average Carried 1 | 1 2 Final Capacity 8 | 8 5 Final Carried 2 | 2 2 Class Distribution -------------------- 100% | Mutant Dominant Class ---------------- Mutant | -10/Materials Resources | -11 -10 ----------- Run | Jun Mat Matter Collected 224 | 224 . Remotely . | . . Salvage Created 41 | 41 . Parts 9 | 9 . Haulers Intercepted . | . . Recyclers Shooed 1 | 1 . Parts Field Recycled . | . . Retrieved Matter . | . . Parts Self-Destructed . | . . Prevented . | . . Kills | -11 -10 ------- Run | Jun Mat Combat Hostiles Destroyed . | . . Classes Destroyed 1 | 1 . Tunneler 3 | 3 . Best Kill Streak 2 | 2 . Combat Bots Only . | . . Max Kills in Single Turn 1 | 1 . Gunslinging . | . . Exploded . | . . Melee . | . . Uniques/NPCs Destroyed . | . . Combat | -11 -10 -------- Run | Jun Mat Damage Taken 840 | . 840 Core 253 | . 253 Absorbed by Shields . | . . Core Remaining (%) 100 | 100 . Volleys Fired 31 | 8 23 Largest 2 | 2 1 Hottest 100 | 60 100 Shots Fired 39 | 16 23 Gun 16 | 16 . Cannon . | . . Launcher . | . . Special 23 | . 23 Kinetic 8 | 8 . Thermal 31 | 8 23 Explosive . | . . Electromagnetic . | . . Robot Hit Streak 8 | 8 . Robot Miss Streak 2 | 2 . Penetration Max . | . . Secondary Targets . | . . Shots Hit Robots 11 | 11 . Core Hits 4 | 4 . Critical Kills . | . . Critical Parts Destroyed . | . . Critical Strikes . | . . Melee Attacks . | . . Impact . | . . Slashing . | . . Piercing . | . . Sneak Attacks . | . . Combat Hostiles . | . . Follow-up Attacks . | . . Damage Inflicted 114 | 114 . Guns 114 | 114 . Cannons . | . . Explosions . | . . Melee . | . . Ramming . | . . Kinetic 45 | 45 . Thermal 69 | 69 . Explosive . | . . Electromagnetic . | . . Impact . | . . Slashing . | . . Piercing . | . . Highest Corruption 25 | . 25 Average Corruption 21 | . 21 Corruption Purged . | . . Corruption Blocked . | . . Effects 14 | . 14 Message Errors 5 | . 5 Matter Fused 3 | . 3 Heat Flow Errors 1 | . 1 Energy Discharges 1 | . 1 Data Loss (major) 3 | . 3 Alerts 1 | . 1 Overload Shots . | . . Overflow Damage . | . . Projectiles . | . . Explosions . | . . Melee . | . . Knockbacks . | . . Impact . | . . Kinetic . | . . Secondary . | . . Self-Inflicted Damage . | . . Shots . | . . Rammed . | . . Targets Rammed . | . . Kicked . | . . Crushed . | . . Highest Temperature 233 | 40 233 Average Temperature 31 | 24 32 Received Heat Transfer . | . . Siege Activations . | . . Robots Corrupted . | . . Combat Hostiles . | . . Parts Fried . | . . Impact Corruptions . | . . Robots Melted . | . . Combat Hostiles . | . . Parts Melted . | . . Heat Transferred 150 | 150 . Parts Sabotaged . | . . Parts Stolen . | . . Parts Stripped . | . . Power Chain Reactions . | . . Missiles Intercepted . | . . Alert | -11 -10 ------- Run | Jun Mat Peak Influence 15 | 15 12 Initial 9 | . 9 Average 3 | 6 3 Maximum Alert Level . | . . Low Security (%) 100 | 100 100 Level 1 . | . . Level 2 . | . . Level 3 . | . . Level 4 . | . . Level 5 . | . . High Security . | . . Max Security . | . . Squads Dispatched . | . . Investigation . | . . Extermination . | . . Reinforcement . | . . Assault . | . . Garrison . | . . Intercept . | . . Searches Triggered . | . . Construction Impeded . | . . Haulers Reinforced . | . . Active Scanning Responses . | . . Cargo Convoy Interrupts . | . . Stealth | -11 -10 --------- Run | Jun Mat Distress Signals . | . . Communications Jammed . | . . Distress Signals . | . . Times Spotted . | . . Peak Tracking Total . | . . Tactical Retreats . | . . Traps | -11 -10 ------- Run | Jun Mat Traps Triggered . | . . Indirectly . | . . Trap Hack Attempts . | . . Triggered . | . . Disarmed . | . . Reprogrammed . | . . Reused . | . . Traps Extracted . | . . Installed . | . . Triggered . | . . Machines | -11 -10 ---------- Run | Jun Mat Machines Disabled . | . . Max in Single Turn . | . . Machines Repaired . | . . Machines Sabotaged . | . . Overloaded Fab Kills . | . . Hacking | -11 -10 --------- Run | Jun Mat Machines Accessed . | . . Terminals . | . . Fabricators . | . . Repair Stations . | . . Recycling Units . | . . Scanalyzers . | . . Garrison Access . | . . Total Hacks . | . . Successful . | . . Failed . | . . Catastrophic . | . . Database Lockouts . | . . Manual . | . . Terminals . | . . Fabricators . | . . Repair Stations . | . . Recycling Units . | . . Scanalyzers . | . . Garrison Access . | . . Terminal Hacks . | . . Fabricator Hacks . | . . Repair Station Hacks . | . . Recycling Unit Hacks . | . . Scanalyzer . | . . Garrison Access Hacks . | . . Unauthorized Hacks . | . . Terminals . | . . Fabricators . | . . Repair Stations . | . . Recycling Units . | . . Scanalyzers . | . . Garrison Access . | . . Data Cores Recovered . | . . Used . | . . Hacking Detections . | . . Full Trace Events . | . . Feedback Events . | . . Feedback Blocked . | . . Robot Schematics Acquired . | . . Robots Built . | . . Authchips . | . . Time . | . . Total Robot Build Rating . | . . Part Schematics Acquired . | . . Parts Built . | . . Authchips . | . . Time . | . . Total Part Build Rating . | . . Parts Repaired . | . . Time . | . . Parts Recycled . | . . Recycled Matter . | . . Retrieved Matter . | . . Retrieved Components . | . . Parts Scanalyzed . | . . Part Schematics Acquired . | . . Parts Damaged . | . . Bothacking | -11 -10 ------------ Run | Jun Mat Used RIF Installer . | . . Robots Hacked . | . . Non-combat . | . . Combat . | . . Robot Hacks Applied . | . . Relay Couplers Released . | . . Fabnet Peak Effective % . | . . Robots Rewired . | . . Allies Hacked . | . . Hacks Repelled . | . . Allies | -11 -10 -------- Run | Jun Mat Total Allies . | . . Largest Group . | . . Highest-Rated Group . | . . Highest-Rated Ally . | . . Total Orders . | . . Ally Attacks . | . . Total Damage . | . . Kills . | . . Allies Corrupted . | . . Allies Melted . | . . Intel | -11 -10 ------- Run | Jun Mat Robot Analysis Total . | . . Derelict Logs Recovered . | . . Drone Launches . | . . Drone Recoveries . | . . Exploration | -11 -10 ------------- Run | Jun Mat Turns Passed 564 | 118 446 Spaces Moved 136 | 99 37 Core 26 | 26 . Treads . | . . Legs . | . . Wheels 110 | 73 37 Hover . | . . Flight . | . . Fastest Speed 50 | 50 80 Average Speed 82 | 79 89 Slowest Speed 90 | 90 90 Overloaded Moves . | . . Propulsion Burnouts . | . . Robots Hopped . | . . Cave-ins Triggered 8 | . 8 Exploration Rate (%) 7 | 5 10 Regions Visited 1 Branch Regions . Pre-discovered Areas . | . . Known Exits Taken . | . . Unknown Exits Taken 1 | 1 . Scrap Searched . | . . Spaces Dug 23 | . 23 Terrain Destroyed 23 | . 23 Melee . | . . Projectile 23 | . 23 AOE . | . . Terrain Rammed . | . . Walls Destroyed . | . . Machines Disabled . | . . Actions | -11 -10 --------- Run | Jun Mat Total 504 | 123 381 Wait 320 | . 320 Move 133 | 98 35 Hop . | . . Pick Up 9 | 9 . Fast Attach . | . . Attach 7 | 7 . Detach . | . . Swap 2 | 1 1 Drop . | . . Fire 31 | 8 23 Melee . | . . Ram . | . . Kick . | . . Crush . | . . Escape Stasis 2 | . 2 Rewire . | . . Trap . | . . Miscellaneous . | . . Route ------- -11/Junkyard -10/Materials History --------- Turn | Location | Event 4 | -11/Junkyard | Discovered new exit (range 16) 119 | -11/Junkyard | Entered Materials 240 | -10/Materials | Crushed by falling debris 241 | -10/Materials | System corruption reached 10% 244 | -10/Materials | Crushed by falling debris 246 | -10/Materials | Crushed by falling debris 277 | -10/Materials | Lost 6 parts (1p2n1u2w) 311 | -10/Materials | Build established: Mutant 311 | -10/Materials | Crushed by falling debris 348 | -10/Materials | Crushed by falling debris 445 | -10/Materials | Crushed by falling debris 445 | -10/Materials | Core integrity fell below 50% 544 | -10/Materials | Crushed by falling debris 566 | -10/Materials | Crushed by falling debris 566 | -10/Materials | Smashed by cave-in Last Messages --------------- 00348_ The unstable cave ceiling collapses. 00348_ Crushed by falling debris. 00358_ =DXFY DKBW8I6 =ECRKRJADBL< 00374_ System corrupted: Substantial component data lost. 00395_ CWS|T:%KHN98TNJOMUS&ILMA#GKD7:X7ZL 00420_ G QRI9331